bitfinex-derivatives/quotes_BNBF0:USTF0_20260221
["timestamp","ask_amount","ask_price","bid_price","bid_amount"]
[1771658508271,1.55829901,628.0,627.32,1.18947925]
[1771658508468,1.55829901,628.01,627.34,1.18947925]
[1771658508672,1.55829901,628.08,627.4,1.18947925]
[1771658509272,1.55829901,628.09,627.41,1.18947925]
[1771658509568,1.55829901,628.09,627.4,1.18947925]
[1771658510272,2.33957864,628.21,627.4,1.18947925]
[1771658510273,1.55829901,628.1,627.4,1.18947925]
[1771658511273,1.55829901,628.11,627.39,1.18947925]
[1771658513368,1.55829901,628.11,627.38,1.18947925]
[1771658514274,1.55829901,628.12,627.38,1.18947925]
[1771658517475,1.55829901,628.12,627.37,1.18947925]
[1771658518373,1.55829901,628.13,627.37,1.18947925]
[1771658519576,1.55829901,628.12,627.36,1.18947925]
[1771658525180,1.55829901,628.12,627.35,1.18947925]
[1771658526280,1.55829901,628.13,627.35,1.18947925]
[1771658534286,1.55829901,628.12,627.35,1.18947925]
[1771658536387,1.55829901,628.12,627.31,1.562]
[1771658536388,1.55829901,628.12,627.36,1.18947925]
[1771658536585,1.55829901,628.13,627.36,1.18947925]
[1771658539190,1.55829901,628.12,627.36,1.18947925]
[1771658542196,1.55829901,628.12,627.37,1.18947925]
[1771658545293,1.55829901,628.11,627.37,1.18947925]
[1771658546401,1.55829901,628.11,627.38,1.18947925]
[1771658548402,1.55829901,628.1,627.38,1.18947925]
[1771658549298,1.55829901,628.1,627.39,1.18947925]
[1771658551199,1.55829901,628.09,627.39,1.18947925]
[1771658551498,1.55829901,628.09,627.4,1.18947925]
[1771658552299,1.55829901,628.08,627.4,1.18947925]
[1771658553302,1.55829901,628.07,627.42,1.18947925]
[1771658556602,1.55829901,628.07,627.31,1.562]
[1771658556905,1.55829901,628.07,627.42,1.18864026]
[1771658564411,1.55829901,628.06,627.42,1.18864026]
[1771658566517,1.55829901,628.07,627.42,1.18864026]
[1771658574122,1.55829901,628.06,627.41,1.18864026]
[1771658596638,1.55829901,628.11,627.41,1.18864026]
[1771658596933,1.55829901,628.1,627.45,1.18864026]
[1771658597338,1.55829901,628.11,627.45,1.18864026]
[1771658597838,1.55829901,628.1,627.44,1.18864026]
[1771658599239,1.55829901,628.11,627.44,1.18864026]
[1771658600338,1.55829901,628.11,627.43,1.18864026]
[1771658607243,1.55829901,628.12,627.43,1.18864026]
[1771658608446,1.55829901,628.11,627.42,1.18864026]
[1771658616955,1.55829901,628.11,627.43,1.949]
[1771658632268,1.55829901,628.1,627.43,1.949]
[1771658634272,1.55829901,628.1,627.43,3.13609509]
[1771658640278,1.55829901,628.09,627.43,3.13609509]
[1771658640577,1.55829901,628.09,627.44,1.18709509]
[1771658642278,1.55829901,628.09,627.44,1.18846581]
[1771658648578,1.55829901,628.12,627.47,1.18846581]
[1771658648779,1.55829901,628.17,627.52,1.18846581]
[1771658649183,1.55829901,628.19,627.51,1.18846581]
[1771658650379,1.55829901,628.19,627.5,1.18846581]
[1771658651183,1.55829901,628.2,627.5,1.18846581]
[1771658652282,1.55829901,628.19,627.51,1.841]
[1771658653279,2.33957864,628.31,627.51,1.841]
[1771658653280,1.55829901,628.2,627.51,1.841]
[1771658656686,0.27719807,628.32,627.52,2.1350396]
[1771658656986,0.27719807,628.32,627.53,0.94657379]
[1771658657282,0.27719807,628.32,627.54,0.94657379]
[1771658657585,0.27719807,628.32,627.55,0.94657379]
[1771658657885,0.27719807,628.32,627.56,0.94657379]
[1771658658185,0.27719807,628.32,627.57,0.94657379]
[1771658658481,0.27719807,628.32,627.58,0.94657379]
[1771658658682,0.27719807,628.32,627.59,0.94657379]
[1771658658986,0.27719807,628.32,627.6,0.94657379]
[1771658659181,0.27719807,628.32,627.61,0.94657379]
[1771658659382,0.27719807,628.32,627.51,3.02946581]
[1771658659383,0.27719807,628.32,627.62,0.94657379]
[1771658659682,0.27719807,628.32,627.63,0.94657379]
[1771658659881,0.27719807,628.32,627.64,0.94657379]
[1771658660185,0.27719807,628.32,627.65,0.94657379]
[1771658660380,0.27719807,628.32,627.66,0.94657379]
[1771658660584,0.27719807,628.32,627.67,0.94657379]
[1771658660785,0.27719807,628.32,627.68,0.94657379]
[1771658660982,0.27719807,628.32,627.69,0.94657379]
[1771658661183,0.27719807,628.32,627.7,0.94657379]
[1771658661386,0.27719807,628.32,627.71,0.94657379]
[1771658661687,0.27719807,628.32,627.51,3.02946581]
[1771658661887,0.27719807,628.32,627.52,0.94634772]
[1771658662082,0.27719807,628.32,627.53,0.94634772]
[1771658662286,0.27719807,628.32,627.51,3.02946581]
[1771658662287,0.27719807,628.32,627.54,0.94634772]
[1771658662487,0.27719807,628.32,627.55,0.94634772]
[1771658662685,0.27719807,628.32,627.56,0.94634772]
[1771658662885,0.27719807,628.32,627.57,0.94634772]
[1771658663188,0.27719807,628.32,627.58,0.94634772]
[1771658663386,0.27719807,628.32,627.59,0.94634772]
[1771658663584,0.27719807,628.32,627.6,0.94634772]
[1771658663789,0.27719807,628.32,627.61,0.94634772]
[1771658663988,0.27719807,628.32,627.62,0.94634772]
[1771658664191,0.27719807,628.32,627.63,0.94634772]
[1771658664393,0.27719807,628.32,627.64,0.94634772]
[1771658664686,0.27719807,628.32,627.65,0.94634772]
[1771658664989,0.27719807,628.32,627.66,0.94634772]
[1771658665191,0.27719807,628.32,627.67,0.94634772]
[1771658665389,0.27719807,628.32,627.68,0.94634772]
[1771658665590,0.27719807,628.32,627.69,0.94634772]
[1771658665790,0.27719807,628.32,627.7,0.94634772]
[1771658665993,0.27719807,628.32,627.71,0.94634772]
[1771658666190,0.27719807,628.32,627.51,3.02946581]
[1771658666392,0.27719807,628.32,627.52,0.94624519]
[1771658666592,0.27719807,628.32,627.53,0.94624519]
[1771658666791,0.27719807,628.32,627.54,0.94624519]
[1771658666995,0.27719807,628.32,627.55,0.94624519]
[1771658667195,0.27719807,628.32,627.56,0.94624519]
[1771658667396,0.27719807,628.32,627.57,0.94624519]
[1771658667596,0.27719807,628.32,627.58,0.94624519]
[1771658667792,0.27719807,628.32,627.59,0.94624519]
[1771658668090,0.27719807,628.32,627.6,0.94624519]
[1771658668291,0.27719807,628.32,627.61,0.94624519]
[1771658668492,0.27719807,628.32,627.62,0.94624519]
[1771658668694,0.27719807,628.32,627.63,0.94624519]
[1771658668991,0.27719807,628.32,627.64,0.94624519]
[1771658669195,0.27719807,628.32,627.65,0.94624519]
[1771658669395,0.27719807,628.32,627.66,0.94624519]
[1771658669592,0.27719807,628.32,627.67,0.94624519]
[1771658669796,0.27719807,628.32,627.68,0.94624519]
[1771658669998,0.27719807,628.32,627.69,0.94624519]
[1771658670199,0.27719807,628.32,627.7,0.94624519]
[1771658670397,0.27719807,628.32,627.71,0.94624519]
[1771658670599,0.27719807,628.32,627.51,1.18846581]
[1771658670797,0.27719807,628.32,627.52,0.94621618]
[1771658671000,0.27719807,628.32,627.53,0.94621618]
[1771658671299,0.27719807,628.32,627.52,2.048]
[1771658671300,0.27719807,628.32,627.54,0.94621618]
[1771658671497,0.27719807,628.32,627.55,0.94621618]
[1771658671700,0.27719807,628.32,627.56,0.94621618]
[1771658671900,0.27719807,628.32,627.57,0.94621618]
[1771658672100,0.27719807,628.32,627.58,0.94621618]
[1771658672300,0.27719807,628.32,627.52,2.048]
[1771658672301,0.27719807,628.32,627.59,0.94621618]
[1771658672500,0.27719807,628.32,627.6,0.94621618]
[1771658672800,0.27719807,628.32,627.61,0.94621618]
[1771658672996,0.27719807,628.32,627.62,0.94621618]
[1771658673197,0.27719807,628.32,627.63,0.94621618]
[1771658673400,0.27719807,628.32,627.64,0.94621618]
[1771658673595,0.27719807,628.32,627.65,0.94621618]
[1771658673796,0.27719807,628.32,627.66,0.94621618]
[1771658674001,0.27719807,628.32,627.67,0.94621618]
[1771658674199,0.27719807,628.32,627.52,2.048]
[1771658674398,0.27719807,628.32,627.53,0.94625233]
[1771658674602,0.27719807,628.32,627.54,0.94625233]
[1771658674802,0.27719807,628.32,627.55,0.94625233]
[1771658675099,0.27719807,628.32,627.56,0.94625233]
[1771658675303,0.27719807,628.32,627.57,0.94625233]
[1771658675503,0.27719807,628.32,627.58,0.94625233]
[1771658675799,0.27719807,628.32,627.59,0.94625233]
[1771658676103,0.27719807,628.32,627.6,0.94625233]
[1771658676300,0.27719807,628.32,627.61,0.94625233]
[1771658676499,0.27719807,628.32,627.62,0.94625233]
[1771658676699,0.27719807,628.32,627.63,0.94625233]
[1771658676900,0.27719807,628.32,627.64,0.94625233]
[1771658677199,0.27719807,628.32,627.65,0.94625233]
[1771658677399,0.27719807,628.32,627.66,0.94625233]
[1771658677603,0.27719807,628.32,627.67,0.94625233]
[1771658677801,0.27719807,628.32,627.68,0.94625233]
[1771658678001,0.27719807,628.32,627.69,0.94625233]
[1771658678202,0.27719807,628.32,627.7,0.94625233]
[1771658678401,0.27719807,628.32,627.71,0.94625233]
[1771658678702,0.27719807,628.32,627.52,2.048]
[1771658679004,0.27719807,628.32,627.53,0.94634783]
[1771658679203,0.27719807,628.32,627.54,0.94634783]
[1771658679398,0.27719807,628.32,627.55,0.94634783]
[1771658679601,0.27719807,628.32,627.56,0.94634783]
[1771658679904,0.27719807,628.32,627.57,0.94634783]
[1771658680104,0.27719807,628.32,627.58,0.94634783]
[1771658680304,0.27719807,628.32,627.59,0.94634783]
[1771658680504,0.27719807,628.32,627.6,0.94634783]
[1771658680707,0.27719807,628.32,627.61,0.94634783]
[1771658681002,0.27719807,628.32,627.62,0.94634783]
[1771658681201,0.27719807,628.32,627.63,0.94634783]
[1771658681405,0.27719807,628.32,627.64,0.94634783]
[1771658681602,0.27719807,628.32,627.65,0.94634783]
[1771658681802,0.27719807,628.32,627.66,0.94634783]
[1771658682002,0.27719807,628.32,627.52,3.23404224]
[1771658682003,0.27719807,628.32,627.67,0.94634783]
[1771658682207,0.27719807,628.32,627.68,0.94634783]
[1771658682408,0.27719807,628.32,627.69,0.94634783]
[1771658682607,0.27719807,628.32,627.7,0.94634783]
[1771658682806,0.27719807,628.32,627.71,0.94634783]
[1771658683104,0.27719807,628.32,627.72,0.94634783]
[1771658683305,0.27719807,628.32,627.52,3.23404224]
[1771658683607,0.27719807,628.32,627.53,0.94657063]
[1771658683805,0.27719807,628.32,627.54,0.94657063]
[1771658684010,0.27719807,628.32,627.55,0.94657063]
[1771658684211,0.27719807,628.32,627.56,0.94657063]
[1771658684411,0.27719807,628.32,627.57,0.94657063]
[1771658684610,0.27719807,628.32,627.58,0.94657063]
[1771658684813,0.27719807,628.32,627.59,0.94657063]
[1771658685010,0.27719807,628.32,627.6,0.94657063]
[1771658685209,0.27719807,628.32,627.61,0.94657063]
[1771658685510,0.27719807,628.32,627.62,0.94657063]
[1771658685713,0.27719807,628.32,627.63,0.94657063]
[1771658685909,0.27719807,628.32,627.52,3.23404224]
[1771658685910,0.27719807,628.32,627.64,0.94657063]
[1771658686108,0.27719807,628.32,627.65,0.94657063]
[1771658686310,0.27719807,628.32,627.66,0.94657063]
[1771658686510,0.27719807,628.32,627.67,0.94657063]
[1771658686810,1.59188608,628.22,627.52,2.048]
[1771658689114,1.59188608,628.22,627.52,3.23404224]
[1771658690313,1.59188608,628.21,627.52,3.23404224]
[1771658692217,2.61677671,628.32,627.53,1.18604224]
[1771658692218,1.59188608,628.2,627.53,1.18604224]
[1771658693217,1.59188608,628.19,627.54,1.18604224]
[1771658707435,1.59188608,628.2,627.55,1.18604224]
[1771658708531,1.59188608,628.33,627.68,1.18604224]
[1771658708737,1.59188608,628.29,627.65,1.18604224]
[1771658709236,1.59188608,628.32,627.62,1.18604224]
[1771658710131,1.59188608,628.32,627.52,2.048]
[1771658710132,1.59188608,628.33,627.61,1.18604224]
[1771658711237,1.59188608,628.34,627.6,1.18604224]
[1771658713237,1.59188608,628.35,627.59,1.18604224]
[1771658715133,1.59188608,628.36,627.58,1.18604224]
[1771658718140,1.59188608,628.36,627.57,1.18604224]
[1771658718343,1.59188608,628.37,627.57,1.18604224]
[1771658722142,1.59188608,628.37,627.52,2.048]
[1771658722143,1.59188608,628.37,627.56,1.18604224]
[1771658724247,1.59188608,628.38,627.56,1.18604224]
[1771658733053,1.59188608,628.38,627.57,2.09]
[1771658735753,1.59188608,628.33,627.57,2.09]
[1771658738156,1.59188608,628.32,627.57,2.09]
[1771658742159,1.59188608,628.31,627.57,2.09]
[1771658746665,1.59188608,628.3,627.57,2.09]
[1771658748167,1.59188608,628.29,627.54,1.18604224]
[1771658748369,1.59188608,628.34,627.58,1.18604224]
[1771658749173,1.59188608,628.33,627.59,1.18604224]
[1771658751073,1.59188608,628.32,627.6,1.18604224]
[1771658752174,1.59188608,628.31,627.61,1.889]
[1771658753173,1.59188608,628.31,627.61,3.07504224]
[1771658760990,1.59188608,628.27,627.61,1.889]
[1771658772192,1.59188608,628.25,627.61,1.889]
[1771658777198,1.59188608,628.24,627.61,1.889]
[1771658782099,1.59188608,628.24,627.55,1.18604224]
[1771658785903,1.59188608,628.24,627.56,1.885]
[1771658787106,1.59188608,628.25,627.56,1.885]
[1771658795215,1.59188608,628.24,627.56,1.885]
[1771658801121,1.59188608,628.24,627.56,3.07104224]
[1771658802125,1.59188608,628.23,627.56,3.07104224]
[1771658804126,1.59188608,628.23,627.57,1.18604224]
[1771658806730,1.59188608,628.22,627.57,1.18604224]
[1771658830752,1.59188608,628.22,627.46,1.58749619]
[1771658830952,1.59188608,628.22,627.57,1.18906932]
[1771658836756,1.59188608,628.22,627.58,1.18906932]
[1771658847263,1.59188608,628.22,627.46,1.58749619]
[1771658847468,1.59188608,628.22,627.58,1.18907302]
[1771658866784,1.19537981,628.08,627.55,1.18907302]
[1771658893711,1.59188608,628.19,627.49,2.049]
[1771658894007,1.19537586,628.08,627.55,1.18883693]
[1771658896411,1.19537586,628.09,627.56,1.18883693]
[1771658896913,1.19537586,628.1,627.57,1.18883693]
[1771658897409,1.19537586,628.1,627.56,1.18883693]
[1771658916833,1.19537586,628.07,627.53,1.18883693]
[1771658918229,1.19537586,628.07,627.54,1.268]
[1771658920235,1.19537586,628.08,627.54,1.268]
[1771658926334,1.59188608,628.19,627.54,1.268]
[1771658926535,1.19472175,628.08,627.54,1.268]
[1771658938145,1.19454594,628.08,627.54,1.268]
[1771658960269,1.19454594,628.07,627.54,1.268]
[1771658960466,1.19454594,628.07,627.53,1.18765668]
[1771658961268,1.19454594,628.07,627.54,1.18765668]
[1771658964171,1.19454594,628.07,627.55,1.534]
[1771658973179,1.59188608,628.18,627.55,1.534]
[1771658973475,1.19542123,628.07,627.55,1.534]
[1771658976876,1.19542123,628.06,627.55,1.534]
[1771658982184,1.19542123,628.06,627.53,1.18812498]
[1771658983384,1.19542123,628.06,627.52,1.18812498]
[1771658986388,1.19542123,628.06,627.53,1.292]
[1771659008108,1.19542123,628.07,627.53,2.48012498]
[1771659033329,1.19542123,628.07,627.53,1.18812498]
[1771659036552,1.19542123,628.07,627.54,2.049]
[1771659052441,1.19542123,628.07,627.54,3.23712498]
[1771659054543,1.19542123,628.06,627.54,2.049]
[1771659061147,1.19542123,628.05,627.54,2.049]
[1771659063144,1.19542123,627.97,627.54,2.049]
[1771659063343,0.27716937,628.35,627.54,2.049]
[1771659063344,1.19542123,627.99,627.54,2.049]
[1771659063544,1.19542123,627.98,627.54,2.049]
[1771659064046,1.19542123,627.97,627.54,2.049]
[1771659065150,1.19542123,627.98,627.54,2.049]
[1771659066151,1.59188608,628.09,627.54,2.049]
[1771659066348,1.19379615,627.98,627.54,2.049]
[1771659067148,1.19379615,627.86,627.54,2.049]
[1771659067353,1.19379615,627.8,627.54,2.049]
[1771659068349,1.19379615,627.82,627.54,2.049]
[1771659069353,1.19379615,627.84,627.54,2.049]
[1771659070253,1.19379615,627.85,627.54,2.049]
[1771659070453,1.19379615,627.86,627.54,2.049]
[1771659071154,1.19379615,627.87,627.54,2.049]
[1771659072251,1.19379615,627.88,627.54,2.049]
[1771659073154,1.19379615,627.84,627.54,2.049]
[1771659074257,1.19379615,627.85,627.54,2.049]
[1771659075159,1.19379615,627.86,627.54,2.049]
[1771659076260,1.19379615,627.87,627.54,2.049]
[1771659078165,1.19379615,627.88,627.54,2.049]
[1771659080267,1.19379615,627.89,627.54,2.049]
[1771659081666,1.19379615,627.89,627.16,0.27725659]
[1771659082163,1.19379615,627.9,627.16,0.27725659]
[1771659083264,1.19379615,627.85,627.16,0.27725659]
[1771659084269,1.19379615,627.86,627.16,0.27725659]
[1771659085670,1.19379615,627.86,627.17,1.514]
[1771659085867,1.19379615,627.85,627.17,1.514]
[1771659086369,1.19379615,627.86,627.17,1.514]
[1771659092372,1.19379615,628.0,627.17,1.514]
[1771659092673,1.19379615,627.99,627.17,1.514]
[1771659094179,1.19379615,628.0,627.17,1.514]
[1771659094478,1.19379615,627.99,627.17,1.514]
[1771659096180,1.19379615,627.98,627.17,1.514]
[1771659098180,1.19379615,627.97,627.17,1.514]
[1771659099485,1.19379615,627.96,627.17,1.514]
[1771659100387,1.19379615,627.95,627.17,1.514]
[1771659102189,1.19379615,627.94,627.17,1.514]
[1771659103287,1.19379615,627.93,627.17,1.514]
[1771659104391,1.19379615,627.92,627.17,1.514]
[1771659105387,1.19379615,627.91,627.17,1.514]
[1771659106092,1.19379615,627.9,627.17,1.514]
[1771659107192,1.19379615,627.89,627.17,1.514]
[1771659108387,1.19379615,627.88,627.17,1.514]
[1771659109192,1.19379615,627.87,627.17,1.514]
[1771659110194,1.19379615,627.87,627.17,2.70083136]
[1771659111292,1.19379615,627.86,627.17,2.70083136]
[1771659112295,1.19379615,627.86,627.19,1.18683136]
[1771659112593,1.19379615,627.88,627.22,1.18683136]
[1771659113295,1.19379615,627.88,627.21,1.18683136]
[1771659116200,1.19379615,627.89,627.21,1.18683136]
[1771659119296,1.19379615,627.89,627.2,1.18683136]
[1771659120804,1.19379615,627.93,627.24,1.18683136]
[1771659121003,1.19379615,627.95,627.26,1.18683136]
[1771659122301,1.19379615,627.95,627.25,1.18683136]
[1771659123605,1.19379615,627.96,627.26,1.18683136]
[1771659124307,1.19379615,627.97,627.26,1.18683136]
[1771659126306,1.19379615,628.0,627.29,1.18683136]
[1771659127303,1.19379615,628.06,627.33,1.18683136]
[1771659127508,1.19379615,628.08,627.35,1.18683136]
[1771659128309,1.19379615,628.09,627.34,1.18683136]
[1771659128904,1.19379615,628.13,627.39,1.18683136]
[1771659129407,0.27716937,628.35,627.38,1.18683136]
[1771659129408,1.19379615,628.14,627.38,1.18683136]
[1771659130408,1.19379615,628.15,627.38,1.18683136]
[1771659131208,1.19379615,628.14,627.38,1.18683136]
[1771659131506,1.19379615,628.15,627.37,1.18683136]
[1771659132003,1.19379615,628.14,627.36,1.18683136]
[1771659132209,1.19379615,628.14,627.37,1.18683136]
[1771659132506,1.19379615,628.14,627.36,1.18683136]
[1771659134503,1.19379615,628.15,627.36,1.18683136]
[1771659135111,1.19379615,628.14,627.36,1.18683136]
[1771659136210,1.19379615,628.14,627.37,1.18683136]
[1771659136408,1.19379615,628.14,627.36,1.18683136]
[1771659136613,1.19379615,628.1,627.32,1.18683136]
[1771659137214,1.59188608,628.25,627.37,1.18683136]
[1771659140114,1.59188608,628.21,627.33,1.18683136]
[1771659140311,1.59188608,628.2,627.31,1.18683136]
[1771659140516,1.59188608,628.11,627.23,1.18683136]
[1771659141619,0.27716937,628.35,627.21,1.18683136]
[1771659141620,1.59188608,628.09,627.21,1.18683136]
[1771659144517,1.59188608,628.09,627.22,1.18683136]
[1771659149326,1.59188608,628.08,627.23,1.88]
[1771659156233,1.59188608,628.07,627.23,1.88]
[1771659157333,1.59188608,628.07,627.23,3.06683136]
[1771659169343,1.59188608,628.07,627.23,1.88]
[1771659172447,1.59188608,628.07,627.22,1.18683136]
[1771659173350,1.59188608,628.07,627.23,1.18683136]
[1771659175347,1.59188608,628.06,627.23,1.18683136]
[1771659176351,1.59188608,628.06,627.24,1.18683136]
[1771659177353,1.59188608,628.05,627.24,1.18683136]
[1771659177553,1.59188608,628.05,627.25,1.18683136]
[1771659178556,1.59188608,628.05,627.26,1.212]
[1771659179352,1.59188608,628.04,627.26,2.39883136]
[1771659180260,1.59188608,628.03,627.26,2.39883136]
[1771659181161,1.59188608,628.0,627.26,1.212]
[1771659181461,1.59188608,627.99,627.26,1.212]
[1771659183362,1.59188608,627.98,627.26,2.39883136]
[1771659184362,0.27716937,628.35,627.26,2.39883136]
[1771659184363,1.59188608,627.96,627.28,1.18683136]
[1771659185060,1.59188608,628.16,627.48,1.18683136]
[1771659185259,0.27716937,628.35,627.26,1.212]
[1771659185260,1.59188608,628.23,627.49,1.18683136]
[1771659185458,1.59188608,628.22,627.5,1.18683136]
[1771659186260,1.59188608,628.24,627.48,1.18683136]
[1771659187063,1.59188608,628.25,627.47,1.18683136]
[1771659188163,1.59188608,628.26,627.46,1.18683136]
[1771659189163,1.59188608,628.27,627.45,1.18683136]
[1771659190258,1.59188608,628.28,627.45,1.18683136]
[1771659190462,1.59188608,628.28,627.44,1.18683136]
[1771659192062,1.59188608,628.29,627.43,1.18683136]
[1771659192963,1.59188608,628.21,627.35,1.18683136]
[1771659193664,1.59188608,628.2,627.34,1.18683136]
[1771659194965,1.59188608,628.14,627.29,1.18683136]
[1771659197467,1.59188608,628.14,627.28,1.18683136]
[1771659203072,1.59188608,628.14,627.29,1.18683136]
[1771659203271,1.59188608,628.14,627.28,1.18683136]
[1771659203471,1.59188608,628.17,627.32,1.18683136]
[1771659203768,1.59188608,628.23,627.38,1.18683136]
[1771659203972,1.59188608,628.5,627.64,1.18683136]
[1771659204176,0.27712853,628.6,627.7,1.18683136]
[1771659204569,0.27712853,628.6,627.76,1.18683136]
[1771659204770,0.27712853,628.6,627.82,1.18683136]
[1771659205269,0.27712853,628.6,627.79,1.18683136]
[1771659206071,0.27712853,628.6,627.56,2.38124429]
[1771659206072,0.27712853,628.6,627.77,1.18683136]
[1771659206274,0.27712853,628.6,627.62,1.18683136]
[1771659206876,0.27712853,628.6,627.61,1.18683136]
[1771659207077,0.27712853,628.6,627.6,1.18683136]
[1771659208182,0.27712853,628.6,627.59,1.18683136]
[1771659210281,0.27712853,628.6,627.47,1.58749619]
[1771659210282,0.27712853,628.6,627.58,1.18683136]
[1771659211181,0.27712853,628.6,627.57,1.18683136]
[1771659213183,0.27712853,628.6,627.56,1.18683136]
[1771659213580,0.27712853,628.6,627.52,1.18683136]
[1771659219784,0.27712853,628.6,627.53,1.507]
[1771659223289,0.27712853,628.6,627.53,2.69383136]
[1771659227191,0.27712853,628.6,627.54,1.18683136]
[1771659228188,0.27712853,628.6,627.55,1.18683136]
[1771659229390,0.27712853,628.6,627.56,1.18683136]
[1771659229891,1.59188608,628.59,627.53,1.507]
[1771659230190,1.59188608,628.55,627.53,1.507]
[1771659232090,1.59188608,628.54,627.53,1.507]
[1771659238199,1.59188608,628.53,627.53,1.507]
[1771659239298,1.59188608,628.52,627.53,1.507]
[1771659241200,1.59188608,628.51,627.53,1.507]
[1771659242197,1.59188608,628.5,627.53,1.507]
[1771659243102,1.59188608,628.49,627.53,1.507]
[1771659244203,1.59188608,628.48,627.53,1.507]
[1771659245204,1.59188608,628.46,627.53,1.507]
[1771659246100,1.59188608,628.44,627.53,1.507]
[1771659247200,0.27712853,628.6,627.54,1.18683136]
[1771659247201,1.59188608,628.42,627.54,1.18683136]
[1771659248101,1.59188608,628.4,627.56,1.18683136]
[1771659249008,1.59188608,628.4,627.55,1.18683136]
[1771659249307,1.59188608,628.37,627.53,2.69383136]
[1771659250103,1.59188608,628.33,627.53,1.507]
[1771659250403,1.59188608,628.32,627.53,1.507]
[1771659251106,1.59188608,628.31,627.53,1.507]
[1771659251303,0.27712853,628.6,627.53,1.507]
[1771659251304,1.59188608,628.28,627.53,1.507]
[1771659253403,1.59188608,628.29,627.53,1.507]
[1771659255508,1.59188608,628.28,627.53,1.507]
[1771659260010,1.59188608,628.25,627.53,1.507]
[1771659262615,1.59188608,628.26,627.53,1.507]
[1771659263116,1.59188608,628.25,627.53,1.507]
[1771659263315,1.59188608,628.26,627.53,1.507]
[1771659267218,1.59188608,628.25,627.53,1.507]
[1771659267415,1.59188608,628.26,627.53,1.507]
[1771659267819,1.59188608,628.26,627.37,1.18262924]
[1771659268116,1.59188608,628.25,627.37,1.18262924]
[1771659269116,1.59188608,628.25,627.38,1.18262924]
[1771659272121,1.59188608,628.24,627.39,1.18262924]
[1771659272321,1.59188608,628.24,627.38,1.18262924]
[1771659273220,1.59188608,628.24,627.39,1.18262924]
[1771659274222,1.59188608,628.23,627.4,1.18262924]
[1771659274426,1.59188608,628.23,627.39,1.18262924]
[1771659275125,1.59188608,628.23,627.4,1.18262924]
[1771659277130,1.59188608,628.17,627.34,1.18262924]
[1771659277325,2.33957864,628.34,627.34,1.18262924]
[1771659277326,1.59188608,628.18,627.34,1.18262924]
[1771659282533,1.59188608,628.18,627.35,1.524]
[1771659283129,1.59188608,628.17,627.35,1.524]
[1771659287436,1.59188608,628.16,627.35,1.524]
[1771659288440,1.59188608,628.16,627.35,2.70662924]
[1771659290339,1.59188608,628.15,627.36,1.18262924]
[1771659292338,1.59188608,628.14,627.37,1.18262924]
[1771659293339,1.59188608,628.13,627.38,1.18262924]
[1771659295341,1.59188608,628.12,627.38,1.18262924]
[1771659296236,1.59188608,628.12,627.35,1.524]
[1771659296237,1.59188608,628.12,627.39,1.18262924]
[1771659302343,1.59188608,628.11,627.39,1.18262924]
[1771659303347,1.59188608,628.11,627.4,1.18262924]
[1771659311152,1.59188608,628.11,627.41,1.458]
[1771659313455,1.59188608,628.1,627.41,2.64062924]
[1771659317359,1.19472886,627.98,627.41,2.64062924]
[1771659319363,1.19472886,627.97,627.41,2.64062924]
[1771659320263,1.19472886,627.97,627.42,1.18262924]
[1771659321464,1.19472886,627.96,627.43,1.18262924]
[1771659330972,1.19472886,627.96,627.44,1.686]
[1771659331172,1.59188608,628.07,627.44,1.686]
[1771659331372,1.19564964,627.96,627.44,1.686]
[1771659354991,1.19564964,627.96,627.43,1.18888461]
[1771659358596,1.19564964,627.96,627.44,1.205]
[1771659375606,1.19564964,627.96,627.43,1.18888461]
[1771659405034,1.19564964,627.96,627.44,1.35]
[1771659415044,1.19564964,627.97,627.44,2.53888461]
[1771659422149,1.19564964,627.97,627.44,1.35]
[1771659423956,1.19564964,627.96,627.44,1.35]
[1771659424654,1.19547911,627.96,627.44,1.35]
[1771659428360,1.19547911,627.92,627.44,1.35]
[1771659428560,1.19547911,627.81,627.44,1.35]
[1771659429257,1.19547911,627.83,627.44,1.35]
[1771659430161,1.19547911,627.84,627.44,1.35]
[1771659430461,1.19547911,627.85,627.44,1.35]
[1771659432263,1.19547911,627.86,627.44,1.35]
[1771659433160,1.19547911,627.87,627.44,1.35]
[1771659435165,1.19547911,627.88,627.44,1.35]
[1771659439372,1.19547911,627.89,627.44,1.35]
[1771659443874,0.27722898,628.18,627.44,1.35]
[1771659443875,1.19547911,627.88,627.44,1.35]
[1771659444074,1.19547911,627.86,627.44,1.35]
[1771659444375,1.19547911,627.82,627.44,1.35]
[1771659445674,1.19547911,627.81,627.44,1.35]
[1771659446177,1.59188608,627.93,627.44,1.35]
[1771659446178,1.19547911,627.82,627.44,1.35]
[1771659447877,1.19547911,627.79,627.44,1.35]